bitfinex-derivatives/quotes_BTCF0:USTF0_20260106
["timestamp","ask_amount","ask_price","bid_price","bid_amount"]
[1767700682340,0.010654,93886.0,93872.0,0.09573697]
[1767700684942,0.010655,93884.0,93872.0,0.09573697]
[1767700685141,0.010654,93893.0,93872.0,0.09573697]
[1767700685338,0.010655,93886.0,93872.0,0.09573697]
[1767700686038,0.010655,93886.0,93872.0,0.05873697]
[1767700686429,0.18588107,93894.0,93872.0,0.05873697]
[1767700686839,0.010655,93884.0,93872.0,0.05873697]
[1767700687043,0.010655,93883.0,93871.0,0.09525507]
[1767700689642,0.11074657,93892.0,93871.0,0.09525507]
[1767700691946,0.010655,93884.0,93871.0,0.09525507]
[1767700693248,0.010654,93887.0,93871.0,0.09525507]
[1767700693749,0.010654,93887.0,93871.0,0.07325507]
[1767700695441,0.010655,93885.0,93871.0,0.07325507]
[1767700697044,0.09104655,93890.0,93868.0,0.19581999]
[1767700697246,0.09104655,93890.0,93869.0,0.09999548]
[1767700697454,0.010655,93882.0,93869.0,0.09999548]
[1767700699051,0.010655,93885.0,93869.0,0.09999548]
[1767700700252,0.010655,93885.0,93872.0,0.09582451]
[1767700700449,0.010655,93884.0,93872.0,0.09582451]
[1767700700653,0.09104655,93890.0,93872.0,0.09582451]
[1767700700954,0.010655,93885.0,93872.0,0.09582451]
[1767700701447,0.010655,93885.0,93872.0,0.06582451]
[1767700701751,0.09104655,93890.0,93872.0,0.06582451]
[1767700701752,0.010654,93887.0,93872.0,0.06582451]
[1767700702555,0.09104655,93890.0,93872.0,0.06582451]
[1767700703254,0.010654,93886.0,93872.0,0.06582451]
[1767700705056,0.010655,93884.0,93872.0,0.06582451]
[1767700705252,0.010654,93887.0,93872.0,0.06582451]
[1767700705755,0.010655,93885.0,93872.0,0.06582451]
[1767700707662,0.09104655,93890.0,93872.0,0.06582451]
[1767700707663,0.010654,93887.0,93872.0,0.06582451]
[1767700708052,0.010655,93885.0,93872.0,0.06582451]
[1767700708262,0.010655,93884.0,93872.0,0.06582451]
[1767700709158,0.010655,93884.0,93872.0,0.03782451]
[1767700709655,0.010654,93887.0,93872.0,0.03782451]
[1767700711760,0.010655,93885.0,93872.0,0.03782451]
[1767700712960,0.18919169,93890.0,93872.0,0.03782451]
[1767700714162,0.010655,93884.0,93872.0,0.03782451]
[1767700716862,0.010655,93884.0,93872.0,0.00982451]
[1767700717061,0.010655,93884.0,93870.0,0.09814514]
[1767700717962,0.010655,93883.0,93870.0,0.09814514]
[1767700719359,0.010655,93882.0,93869.0,0.09999548]
[1767700719663,0.010655,93882.0,93870.0,0.09814514]
[1767700721272,0.010655,93880.0,93870.0,0.09814514]
[1767700722571,0.010655,93883.0,93870.0,0.09814514]
[1767700723069,0.010655,93881.0,93870.0,0.09814514]
[1767700723460,0.010655,93879.0,93870.0,0.09814514]
[1767700724267,0.010655,93881.0,93870.0,0.09814514]
[1767700724774,0.010655,93881.0,93870.0,0.07714514]
[1767700725477,0.010655,93881.0,93870.0,0.09814514]
[1767700726976,0.18919169,93890.0,93870.0,0.09814514]
[1767700727277,0.010655,93882.0,93870.0,0.09814514]
[1767700727480,0.18919169,93890.0,93869.0,0.09999548]
[1767700727682,0.18919169,93890.0,93870.0,0.09814514]
[1767700729086,0.010655,93883.0,93870.0,0.09814514]
[1767700729287,0.18919169,93890.0,93870.0,0.09814514]
[1767700730986,0.010655,93884.0,93870.0,0.09814514]
[1767700731586,0.18919169,93890.0,93870.0,0.09814514]
[1767700732186,0.010655,93884.0,93870.0,0.09814514]
[1767700732387,0.010655,93883.0,93870.0,0.07614514]
[1767700734191,0.010655,93885.0,93870.0,0.07614514]
[1767700734394,0.010655,93884.0,93870.0,0.07614514]
[1767700734890,0.18919169,93890.0,93870.0,0.07614514]
[1767700736191,0.010655,93884.0,93870.0,0.07614514]
[1767700736392,0.010655,93883.0,93870.0,0.07614514]
[1767700737091,0.18919169,93890.0,93870.0,0.07614514]
[1767700737092,0.010655,93882.0,93870.0,0.07614514]
[1767700737292,0.010655,93881.0,93870.0,0.07614514]
[1767700737492,0.010655,93883.0,93870.0,0.07614514]
[1767700740100,0.010655,93883.0,93870.0,0.04814514]
[1767700740790,0.09814514,93890.0,93871.0,0.09995969]
[1767700740996,0.0906,93894.0,93873.0,0.09995969]
[1767700742188,0.010654,93890.0,93873.0,0.09995969]
[1767700743502,0.010654,93890.0,93873.0,0.11061569]
[1767700744600,0.010654,93888.0,93873.0,0.09995969]
[1767700747803,0.010654,93888.0,93873.0,0.08195969]
[1767700747999,0.010654,93887.0,93873.0,0.08195969]
[1767700749002,0.010655,93885.0,93873.0,0.08195969]
[1767700749906,0.0906,93894.0,93873.0,0.08195969]
[1767700751311,0.010654,93888.0,93873.0,0.08195969]
[1767700752011,0.010654,93888.0,93873.0,0.09261569]
[1767700752212,0.010654,93889.0,93873.0,0.09261569]
[1767700752905,0.0906,93894.0,93878.0,0.010655]
[1767700753109,0.20306194,93904.0,93881.0,0.10969704]
[1767700753312,0.18393194,93904.0,93881.0,0.10969704]
[1767700753611,0.18393194,93904.0,93881.0,0.09904204]
[1767700753804,0.010653,93902.0,93889.0,0.09814514]
[1767700754111,0.010653,93901.0,93889.0,0.09814514]
[1767700754513,0.010653,93901.0,93883.0,0.10969704]
[1767700755414,0.010653,93897.0,93883.0,0.08204204]
[1767700755613,0.0906,93904.0,93883.0,0.08204204]
[1767700756415,0.010653,93896.0,93883.0,0.08204204]
[1767700757817,0.0906,93904.0,93883.0,0.08204204]
[1767700757818,0.01278296,93899.0,93883.0,0.08204204]
[1767700758009,0.010653,93897.0,93883.0,0.08204204]
[1767700758212,0.00212996,93899.0,93883.0,0.08204204]
[1767700762114,0.010653,93898.0,93883.0,0.08204204]
[1767700763118,0.010653,93898.0,93878.0,0.0906]
[1767700763322,0.010653,93898.0,93880.0,0.09814514]
[1767700763923,0.010653,93898.0,93878.0,0.08144218]
[1767700764124,0.010653,93898.0,93881.0,0.010655]
[1767700764422,0.010653,93898.0,93882.0,0.00300642]
[1767700768124,0.00212996,93899.0,93884.0,0.00267261]
[1767700769719,0.00212996,93899.0,93885.0,0.01296079]
[1767700769919,0.00212996,93899.0,93886.0,0.00230679]
[1767700770118,0.00212996,93899.0,93889.0,0.09814514]
[1767700770321,0.0906,93904.0,93889.0,0.09814514]
[1767700770628,0.18393194,93904.0,93887.0,0.00230679]
[1767700770929,0.19458394,93904.0,93885.0,0.00496079]
[1767700771427,0.010653,93903.0,93885.0,0.00496079]
[1767700771827,0.010652,93905.0,93890.0,0.09814514]
[1767700772621,0.010652,93905.0,93887.0,0.010654]
[1767700772924,0.010652,93905.0,93889.0,0.01071642]
[1767700773327,0.10477809,93907.0,93890.0,0.010654]
[1767700774823,0.09412609,93907.0,93890.0,0.010654]
[1767700775623,0.09412609,93907.0,93885.0,0.00068434]
[1767700775823,0.10477809,93907.0,93889.0,0.010654]
[1767700776425,0.09412609,93907.0,93891.0,0.010654]
[1767700776821,0.09412609,93907.0,93889.0,0.010654]
[1767700777629,0.10477809,93907.0,93889.0,0.010654]
[1767700777829,0.09412609,93907.0,93889.0,0.010654]
[1767700778426,0.10477809,93907.0,93889.0,0.010654]
[1767700778632,0.10477809,93907.0,93879.0,0.00699334]
[1767700780625,0.10477809,93907.0,93880.0,0.0005112]
[1767700781231,0.10477809,93907.0,93888.0,0.010654]
[1767700782423,0.10477809,93905.0,93888.0,0.010654]
[1767700783431,0.10477809,93905.0,93886.0,0.010654]
[1767700784036,0.12512083,93905.0,93886.0,0.010654]
[1767700784226,0.09412609,93904.0,93886.0,0.010654]
[1767700784930,0.11446883,93904.0,93886.0,0.010654]
[1767700785135,0.11446883,93904.0,93888.0,0.010654]
[1767700786338,0.11446883,93904.0,93878.0,0.21038825]
[1767700786637,0.09412609,93902.0,93885.0,0.010654]
[1767700788238,0.09412609,93902.0,93886.0,0.010654]
[1767700788940,0.09412609,93902.0,93887.0,0.010654]
[1767700790739,0.11446883,93902.0,93887.0,0.010654]
[1767700790940,0.11446883,93902.0,93891.0,0.010654]
[1767700791140,0.11446883,93902.0,93893.0,0.010654]
[1767700792237,0.09412609,93902.0,93893.0,0.010654]
[1767700793942,0.09412609,93902.0,93888.0,0.08692927]
[1767700794144,0.09412609,93902.0,93885.0,0.010655]
[1767700794444,0.09412609,93902.0,93892.0,0.010654]
[1767700796544,0.09412609,93902.0,93894.0,0.010653]
[1767700798241,0.02034274,93905.0,93894.0,0.010653]
[1767700800242,0.07729039,93904.0,93887.0,0.09056]
[1767700800542,0.010651,93914.0,93896.0,0.010653]
[1767700800747,0.09056,93913.0,93896.0,0.010653]
[1767700801345,0.09056,93913.0,93898.0,0.010653]
[1767700801650,0.010651,93917.0,93898.0,0.010653]
[1767700801851,0.010651,93917.0,93897.0,0.09056]
[1767700802446,0.11691007,93916.0,93897.0,0.09056]
[1767700803053,0.11691007,93915.0,93897.0,0.09056]
[1767700803241,0.11691007,93915.0,93900.0,0.010653]
[1767700803946,0.09599243,93915.0,93900.0,0.010653]
[1767700805251,0.09599243,93915.0,93897.0,0.101213]
[1767700805654,0.11691007,93914.0,93897.0,0.09056]
[1767700806152,0.09599243,93914.0,93897.0,0.09056]
[1767700806954,0.10664343,93914.0,93897.0,0.09056]
[1767700807457,0.010651,93913.0,93897.0,0.09056]
[1767700807847,0.09599243,93914.0,93897.0,0.09056]
[1767700808750,0.02091764,93923.0,93898.0,0.02027289]
[1767700808955,0.02091764,93922.0,93906.0,0.010652]
[1767700809352,0.02091764,93922.0,93904.0,0.010652]
[1767700809556,0.02091764,93922.0,93900.0,0.01992489]
[1767700809755,0.02091764,93922.0,93904.0,0.010652]
[1767700809961,0.02091764,93922.0,93906.0,0.010652]
[1767700811152,0.02091764,93921.0,93906.0,0.010652]
[1767700811554,0.02091764,93920.0,93903.0,0.010652]
[1767700812449,0.02091764,93919.0,93902.0,0.010653]
[1767700812662,0.02091764,93918.0,93901.0,0.010653]
[1767700812857,0.02091764,93917.0,93901.0,0.010653]
[1767700813162,0.02091764,93917.0,93899.0,0.09570415]
[1767700813764,0.02091764,93917.0,93904.0,0.010652]
[1767700814362,0.02091764,93920.0,93900.0,0.02027289]
[1767700814563,0.02091764,93920.0,93904.0,0.010652]
[1767700814859,0.02091764,93920.0,93902.0,0.09570415]
[1767700815162,0.02091764,93920.0,93906.0,0.010652]
[1767700815358,0.09599243,93923.0,93903.0,0.010652]
[1767700815560,0.09599243,93923.0,93904.0,0.010652]
[1767700816263,0.09599243,93923.0,93901.0,0.11597704]
[1767700816563,0.10664243,93922.0,93901.0,0.12663004]
[1767700816758,0.10664343,93920.0,93901.0,0.12663004]
[1767700816959,0.10664343,93920.0,93901.0,0.10635715]
[1767700817261,0.09599243,93918.0,93901.0,0.07635715]
[1767700817462,0.11691007,93918.0,93901.0,0.010653]
[1767700818460,0.02091764,93917.0,93898.0,0.02027289]
[1767700818764,0.010651,93914.0,93897.0,0.09056]
[1767700819564,0.02091764,93916.0,93898.0,0.010653]
[1767700819857,0.02091764,93916.0,93899.0,0.010653]
[1767700820065,0.02091764,93916.0,93897.0,0.11083289]
[1767700820263,0.09599243,93917.0,93898.0,0.02027289]
[1767700820562,0.01065,93921.0,93902.0,0.02027289]
[1767700821055,0.09599243,93923.0,93903.0,0.03092489]
[1767700821564,0.01065,93922.0,93903.0,0.02027289]
[1767700822464,0.010651,93920.0,93903.0,0.02027289]
[1767700823050,0.010651,93918.0,93903.0,0.02027289]
[1767700823262,0.010651,93918.0,93901.0,0.0990936]
[1767700824655,0.010651,93921.0,93901.0,0.0990936]
[1767700824860,0.03156864,93921.0,93901.0,0.0990936]
[1767700825160,0.03156864,93921.0,93901.0,0.0927466]
[1767700825563,0.02091764,93921.0,93903.0,0.010652]
[1767700828773,0.09599243,93923.0,93907.0,0.010652]
[1767700829263,0.09599243,93923.0,93905.0,0.010652]
[1767700829465,0.09599243,93923.0,93906.0,0.010652]
[1767700830066,0.11691007,93923.0,93907.0,0.010652]
[1767700830269,0.11691007,93923.0,93902.0,0.02027289]
[1767700831867,0.0211285,93922.0,93902.0,0.02027289]
[1767700832167,0.0211285,93922.0,93908.0,0.010652]
[1767700833067,0.0211285,93922.0,93902.0,0.01392489]
[1767700833573,0.0211285,93922.0,93907.0,0.010652]
[1767700833972,0.11712637,93922.0,93907.0,0.010652]
[1767700834173,0.11712637,93921.0,93907.0,0.010652]
[1767700835277,0.11712637,93921.0,93909.0,0.010652]
[1767700835772,0.11712637,93921.0,93907.0,0.010652]
[1767700836463,0.09599787,93921.0,93907.0,0.010652]
[1767700836664,0.09056,93928.0,93910.0,0.09806302]
[1767700837159,0.11712637,93926.0,93910.0,0.09806302]
[1767700837362,0.0211285,93925.0,93910.0,0.09806302]
[1767700837676,0.11712637,93925.0,93910.0,0.09806302]
[1767700837974,0.0211285,93924.0,93911.0,0.010652]
[1767700838366,0.11712637,93924.0,93911.0,0.010652]
[1767700838672,0.0211285,93922.0,93910.0,0.10871502]
[1767700840478,0.0211285,93922.0,93910.0,0.10171502]
[1767700840779,0.09599787,93923.0,93910.0,0.10171502]
[1767700841775,0.09599787,93923.0,93910.0,0.010652]
[1767700841965,0.09599787,93923.0,93910.0,0.10871502]
[1767700845877,0.101209,93931.0,93907.0,0.09056]
[1767700845878,0.11712637,93932.0,93914.0,0.010651]
[1767700846070,0.11712637,93932.0,93920.0,0.09806302]
[1767700846271,0.11712637,93932.0,93914.0,0.010651]
[1767700846470,0.11712637,93930.0,93914.0,0.010651]
[1767700846672,0.11712637,93930.0,93912.0,0.010651]
[1767700847275,0.11712637,93929.0,93914.0,0.010651]
[1767700848069,0.11712637,93929.0,93911.0,0.00062867]
[1767700848270,0.11712637,93929.0,93910.0,0.09806302]
[1767700848575,0.11712637,93929.0,93913.0,0.010651]
[1767700848774,0.11712637,93929.0,93915.0,0.010651]
[1767700849174,0.11712637,93929.0,93910.0,0.09806302]
[1767700850281,0.11712637,93929.0,93919.0,0.09806302]
[1767700851282,0.11712637,93929.0,93911.0,0.010652]
[1767700851480,0.11712637,93929.0,93919.0,0.09806302]
[1767700851670,0.11712637,93929.0,93911.0,0.010652]
[1767700852677,0.11712637,93929.0,93913.0,0.010651]
[1767700853178,0.11712637,93929.0,93914.0,0.010651]
[1767700853680,0.11712637,93929.0,93912.0,0.010651]
[1767700854081,0.11712637,93929.0,93919.0,0.09806302]
[1767700856679,0.11712637,93929.0,93919.0,0.06506302]
[1767700856880,0.11712637,93929.0,93919.0,0.09806302]
[1767700857782,0.02068526,93928.0,93919.0,0.09806302]
[1767700857979,0.02068526,93926.0,93910.0,0.09806302]
[1767700858283,0.02068526,93926.0,93907.0,0.09056]
[1767700858478,0.02068526,93926.0,93910.0,0.09806302]
[1767700858684,0.11813181,93926.0,93910.0,0.09806302]
[1767700859386,0.12878181,93926.0,93910.0,0.09806302]
[1767700860581,0.11813181,93917.0,93904.0,0.13378753]
[1767700860787,0.02068526,93911.0,93904.0,0.13378753]
[1767700861086,0.02068526,93911.0,93900.0,0.18862302]
[1767700861483,0.02068526,93911.0,93900.0,0.19927602]
[1767700861688,0.09744655,93912.0,93900.0,0.19927602]
[1767700861873,0.09744655,93912.0,93900.0,0.18862302]
[1767700862078,0.11195144,93919.0,93903.0,0.010653]
[1767700862278,0.02006962,93918.0,93900.0,0.18862302]
[1767700862474,0.11195144,93918.0,93900.0,0.19927602]
[1767700862686,0.02006962,93917.0,93900.0,0.19927602]
[1767700863888,0.02006962,93917.0,93902.0,0.010653]
[1767700864287,0.02006962,93917.0,93900.0,0.17927602]
[1767700865186,0.02006962,93917.0,93902.0,0.010653]
[1767700867289,0.02006962,93913.0,93901.0,0.010653]
[1767700867591,0.02006962,93909.0,93900.0,0.081213]
[1767700867781,0.09188182,93910.0,93900.0,0.081213]
[1767700867983,0.09188182,93910.0,93899.0,0.00212996]
[1767700868183,0.09188182,93910.0,93899.0,0.01278296]
[1767700869591,0.09188182,93910.0,93901.0,0.010653]
[1767700870696,0.02006962,93913.0,93901.0,0.010653]
[1767700871092,0.02006962,93913.0,93899.0,0.00212996]
[1767700871495,0.02006962,93913.0,93899.0,0.13591749]
[1767700871792,0.02006962,93913.0,93899.0,0.00212996]
[1767700871999,0.02006962,93913.0,93898.0,0.13378753]
[1767700872400,0.02006962,93913.0,93901.0,0.010653]
[1767700873504,0.02006962,93913.0,93898.0,0.13378753]
[1767700873894,0.02006962,93913.0,93903.0,0.010652]
[1767700879809,0.02006962,93913.0,93899.0,0.11943953]
[1767700880298,0.02006962,93913.0,93896.0,0.14780503]
[1767700880504,0.02006962,93913.0,93901.0,0.010653]
[1767700880710,0.02006962,93913.0,93903.0,0.010652]
[1767700882809,0.09188182,93915.0,93904.0,0.010652]
[1767700883306,0.11195144,93915.0,93904.0,0.010652]
[1767700886113,0.02006962,93914.0,93904.0,0.010652]
[1767700886614,0.02006962,93914.0,93902.0,0.010653]
[1767700887112,0.02006962,93914.0,93903.0,0.010652]
[1767700887500,0.02006962,93914.0,93896.0,0.14780503]
[1767700887705,0.02006962,93914.0,93904.0,0.010652]
[1767700888314,0.02006962,93908.0,93898.0,0.13384524]
[1767700888503,0.09188182,93898.0,93869.0,0.00213064]
[1767700888706,0.11195144,93891.0,93870.0,0.010656]
[1767700889006,0.09188182,93888.0,93876.0,0.010656]
[1767700889510,0.09188182,93888.0,93871.0,0.02974464]
[1767700889715,0.02006962,93902.0,93888.0,0.010654]
[1767700889914,0.09056,93901.0,93886.0,0.01908864]
[1767700890416,0.09056,93901.0,93882.0,0.1114536]
[1767700890611,0.11195144,93904.0,93882.0,0.1114536]
[1767700890916,0.09056,93903.0,93890.0,0.010654]
[1767700891110,0.11195144,93904.0,93890.0,0.010654]
[1767700891415,0.09056,93903.0,93890.0,0.010654]
[1767700892713,0.09806302,93900.0,93882.0,0.02974364]
[1767700892901,0.02447194,93896.0,93884.0,0.010655]
[1767700895112,0.02447194,93896.0,93877.0,0.11568883]
[1767700895612,0.02447194,93896.0,93882.0,0.010655]
[1767700896511,0.02447194,93895.0,93882.0,0.010655]
[1767700898112,0.02447194,93895.0,93884.0,0.010655]
[1767700901022,0.02447194,93895.0,93875.0,0.11601515]
[1767700901523,0.11667579,93892.0,93875.0,0.09056]
[1767700901821,0.11667579,93891.0,93883.0,0.010655]
[1767700902017,0.02447194,93894.0,93886.0,0.010654]
[1767700902223,0.02447194,93894.0,93883.0,0.010655]
[1767700902520,0.02447194,93894.0,93884.0,0.010655]
[1767700902820,0.11667579,93894.0,93884.0,0.010655]
[1767700903121,0.11667579,93894.0,93876.0,0.01031]
[1767700903827,0.02447194,93893.0,93876.0,0.01031]
[1767700904224,0.11667579,93892.0,93876.0,0.01031]
[1767700904422,0.02447194,93891.0,93875.0,0.09056]
[1767700904625,0.02447194,93891.0,93885.0,0.010655]
[1767700907323,0.11667579,93891.0,93886.0,0.010654]
[1767700907524,0.09220385,93890.0,93886.0,0.010654]
[1767700908224,0.09220385,93890.0,93884.0,0.010655]
[1767700908826,0.09220385,93890.0,93885.0,0.010654]
[1767700909027,0.09220385,93890.0,93886.0,0.010654]
[1767700910622,0.09220385,93890.0,93886.0,0.004654]
[1767700911130,0.09220385,93890.0,93883.0,0.010655]
[1767700911428,0.09220385,93890.0,93885.0,0.010654]
[1767700912327,0.02447194,93896.0,93886.0,0.010654]
[1767700912528,0.02447194,93895.0,93884.0,0.010655]
[1767700912729,0.02447194,93893.0,93884.0,0.010655]
[1767700913028,0.11667579,93893.0,93884.0,0.010655]
[1767700913529,0.02447194,93892.0,93885.0,0.010654]
[1767700914027,0.09220385,93891.0,93887.0,0.010654]
[1767700914216,0.11667579,93891.0,93887.0,0.010654]
[1767700914421,0.09220385,93890.0,93887.0,0.010654]
[1767700915129,0.09220385,93890.0,93886.0,0.010654]
[1767700916131,0.09220385,93890.0,93884.0,0.010655]
[1767700916329,0.09220385,93890.0,93878.0,0.010655]
[1767700916631,0.09220385,93890.0,93877.0,0.010655]
[1767700917225,0.09220385,93890.0,93884.0,0.010655]
[1767700917426,0.09220385,93890.0,93885.0,0.010654]
[1767700918333,0.09220385,93890.0,93875.0,0.089869]
[1767700918533,0.09220385,93890.0,93884.0,0.010655]
[1767700919833,0.09220385,93890.0,93886.0,0.010654]
[1767700920830,0.11404828,93901.0,93886.0,0.010654]
[1767700921026,0.11502971,93898.0,93887.0,0.010654]
[1767700921231,0.02338774,93893.0,93887.0,0.010654]
[1767700921431,0.09164197,93892.0,93877.0,0.010655]
[1767700921635,0.09056,93902.0,93889.0,0.010654]
[1767700922533,0.09056,93902.0,93890.0,0.010654]
[1767700923233,0.09056,93902.0,93888.0,0.010654]
[1767700923538,0.09164197,93901.0,93888.0,0.010654]
[1767700923733,0.01177754,93898.0,93888.0,0.010654]
[1767700925137,0.10318697,93896.0,93885.0,0.010654]
[1767700925336,0.011545,93895.0,93876.0,0.010656]
[1767700925533,0.011545,93895.0,93885.0,0.010655]
[1767700925737,0.011545,93895.0,93875.0,0.18845748]
[1767700925938,0.01129869,93894.0,93883.0,0.004655]
[1767700926340,0.01129869,93894.0,93876.0,0.010655]
[1767700926538,0.01129869,93894.0,93883.0,0.010655]
[1767700927038,0.01129869,93894.0,93885.0,0.010655]
[1767700927532,0.09164197,93895.0,93883.0,0.010655]
[1767700927732,0.10268029,93895.0,93885.0,0.010655]
[1767700927932,0.01103832,93894.0,93885.0,0.010655]
[1767700928336,0.09164197,93895.0,93885.0,0.010655]
[1767700928734,0.10250982,93895.0,93885.0,0.010655]
[1767700930236,0.02338774,93894.0,93875.0,0.13355286]
[1767700930442,0.02338774,93894.0,93885.0,0.010655]
[1767700931338,0.02338774,93894.0,93877.0,0.010655]
[1767700931637,0.02338774,93898.0,93887.0,0.010654]
[1767700932245,0.02338774,93897.0,93887.0,0.010654]
[1767700933744,0.02338774,93897.0,93878.0,0.010309]
[1767700934345,0.02338774,93897.0,93888.0,0.010654]
[1767700934747,0.02338774,93897.0,93878.0,0.010309]
[1767700934947,0.02338774,93897.0,93887.0,0.010654]
[1767700936451,0.02338774,93897.0,93885.0,0.010654]
[1767700936649,0.02338774,93897.0,93878.0,0.010309]
[1767700937053,0.02338774,93897.0,93887.0,0.010654]
[1767700937246,0.02338774,93897.0,93879.0,0.010655]
[1767700938249,0.02338774,93897.0,93887.0,0.010654]
[1767700939149,0.02338774,93897.0,93888.0,0.010654]
[1767700940053,0.02338774,93897.0,93886.0,0.010654]
[1767700941453,0.02338774,93897.0,93886.0,0.005654]
[1767700942053,0.02338774,93897.0,93879.0,0.010655]
[1767700944157,0.02338774,93897.0,93886.0,0.010654]
[1767700944350,0.02338774,93897.0,93879.0,0.010655]
[1767700944351,0.02338774,93897.0,93887.0,0.010654]
[1767700946051,0.02338774,93896.0,93876.0,0.12237286]
[1767700946258,0.02338774,93896.0,93885.0,0.010655]
[1767700946554,0.02338774,93896.0,93876.0,0.09858848]
[1767700946746,0.02338774,93896.0,93884.0,0.010655]
[1767700946947,0.02338774,93896.0,93885.0,0.010654]
[1767700949055,0.02338774,93896.0,93876.0,0.09858848]
[1767700949358,0.09056,93899.0,93877.0,0.02378438]
[1767700949550,0.02338774,93914.0,93888.0,0.02378438]
[1767700949759,0.09056,93916.0,93894.0,0.02378438]
[1767700950064,0.09056,93919.0,93905.0,0.010652]
[1767700950250,0.09056,93920.0,93909.0,0.010652]
[1767700950446,0.09056,93920.0,93903.0,0.02378438]
[1767700950660,0.09056,93920.0,93907.0,0.010652]
[1767700950862,0.09056,93920.0,93903.0,0.02378438]
[1767700950863,0.09056,93920.0,93909.0,0.010652]
[1767700951158,0.11502971,93925.0,93906.0,0.02270047]
[1767700951159,0.02338774,93925.0,93906.0,0.02270047]
[1767700951350,0.09056,93924.0,93906.0,0.11292219]
[1767700952155,0.09056,93924.0,93910.0,0.010652]
[1767700952354,0.09056,93924.0,93912.0,0.010651]
[1767700952561,0.09056,93924.0,93914.0,0.010651]
[1767700952757,0.02338774,93925.0,93916.0,0.010651]
[1767700953061,0.09056,93924.0,93916.0,0.010651]
[1767700953361,0.02540415,93929.0,93916.0,0.010651]
[1767700953565,0.09056,93927.0,93916.0,0.010651]
[1767700956053,0.02540415,93929.0,93916.0,0.010651]
[1767700956253,0.11383487,93928.0,93916.0,0.010651]
[1767700956956,0.11383487,93928.0,93912.0,0.01102398]
[1767700957165,0.02327487,93927.0,93910.0,0.09806227]
[1767700957357,0.02327487,93927.0,93913.0,0.010651]
[1767700957556,0.02327487,93927.0,93910.0,0.09806227]
[1767700957557,0.02327487,93926.0,93910.0,0.09806227]
[1767700957865,0.02327487,93926.0,93915.0,0.010651]
[1767700958761,0.02327487,93926.0,93917.0,0.010651]
[1767700959467,0.09056,93928.0,93917.0,0.010651]
[1767700960267,0.09056,93928.0,93913.0,0.11292219]
[1767700960469,0.09056,93928.0,93918.0,0.010651]
[1767700960770,0.00212928,93929.0,93918.0,0.010651]
[1767700961169,0.02540415,93929.0,93915.0,0.010651]
[1767700961365,0.02540415,93929.0,93918.0,0.010651]
[1767700963760,0.00212928,93929.0,93920.0,0.010651]
[1767700964670,0.00212928,93929.0,93920.0,0.005651]
[1767700964972,0.00212928,93929.0,93912.0,0.11292219]
[1767700965368,0.00212928,93929.0,93919.0,0.010651]
[1767700966072,0.00212928,93929.0,93921.0,0.01065]
[1767700966471,0.00212928,93929.0,93920.0,0.01065]
[1767700967975,0.00212928,93929.0,93912.0,0.11292219]
[1767700968274,0.00212928,93929.0,93919.0,0.010651]
[1767700970675,0.00212928,93929.0,93912.0,0.11292219]
[1767700971774,0.00212928,93929.0,93918.0,0.010651]
[1767700971974,0.00212928,93929.0,93912.0,0.11292219]
[1767700972271,0.00212928,93929.0,93912.0,0.09692219]
[1767700972476,0.00212928,93929.0,93917.0,0.010651]
[1767700972874,0.00212928,93929.0,93918.0,0.010651]
[1767700973079,0.00212928,93929.0,93912.0,0.09692219]
[1767700974676,0.00212928,93929.0,93918.0,0.010651]
[1767700975379,0.00212928,93929.0,93912.0,0.09692219]
[1767700975784,0.00212928,93929.0,93913.0,0.02105475]
[1767700976174,0.00212928,93929.0,93917.0,0.010651]
[1767700976581,0.00212928,93929.0,93913.0,0.02105475]
[1767700976778,0.00212928,93929.0,93915.0,0.010651]
[1767700976981,0.00212928,93929.0,93916.0,0.010651]
[1767700979979,0.00212928,93929.0,93915.0,0.010651]
[1767700980178,0.00212928,93929.0,93913.0,0.02070575]
[1767700980682,0.00212928,93929.0,93913.0,0.11322268]
[1767700980879,0.00212928,93929.0,93917.0,0.010651]
[1767700981073,0.00212928,93929.0,93915.0,0.010651]
[1767700981271,0.00212928,93929.0,93913.0,0.11322268]
[1767700982289,0.09806227,93923.0,93907.0,0.09329945]
[1767700982476,0.09806227,93920.0,93907.0,0.09329945]
[1767700983082,0.0210721,93926.0,93907.0,0.09329945]
[1767700983285,0.0210721,93926.0,93907.0,0.11556748]
[1767700983980,0.09806227,93920.0,93907.0,0.11556748]
[1767700984181,0.09806227,93920.0,93908.0,0.12621948]
[1767700984481,0.01065,93927.0,93908.0,0.12621948]
[1767700985186,0.01065,93926.0,93908.0,0.11556748]
[1767700985388,0.12885057,93929.0,93909.0,0.010652]
[1767700986085,0.01065,93927.0,93909.0,0.010652]
[1767700987082,0.11820057,93929.0,93908.0,0.11556748]
[1767700987283,0.01065,93928.0,93908.0,0.12621948]
[1767700987586,0.01065,93926.0,93908.0,0.12621948]
[1767700987785,0.01065,93926.0,93908.0,0.10721948]
[1767700987985,0.01065,93926.0,93909.0,0.09329945]
[1767700988289,0.12885057,93929.0,93910.0,0.010652]
[1767700988490,0.01065,93927.0,93910.0,0.010652]
[1767700988693,0.01065,93927.0,93909.0,0.09329945]
[1767700988891,0.01065,93925.0,93909.0,0.09329945]
[1767700989391,0.01065,93923.0,93909.0,0.09329945]
[1767700989990,0.01065,93921.0,93909.0,0.09329945]
[1767700990680,0.010651,93918.0,93909.0,0.09329945]
[1767700990995,0.010651,93920.0,93909.0,0.09329945]
[1767700991193,0.010651,93919.0,93909.0,0.09329945]
[1767700991385,0.0210721,93927.0,93909.0,0.09329945]
[1767700991697,0.010651,93920.0,93909.0,0.09329945]
[1767700995495,0.010651,93920.0,93909.0,0.05929945]
[1767700996886,0.010651,93921.0,93909.0,0.05929945]
[1767700997087,0.010651,93921.0,93909.0,0.08156748]
[1767700997399,0.010651,93919.0,93909.0,0.08156748]
[1767700997614,0.09712847,93929.0,93909.0,0.08156748]
[1767700997615,0.0317221,93928.0,93909.0,0.08156748]
[1767700997797,0.0210721,93928.0,93909.0,0.08156748]
[1767700997992,0.010651,93920.0,93909.0,0.08156748]
[1767700998188,0.01065,93921.0,93909.0,0.08156748]
[1767700998996,0.01065,93921.0,93910.0,0.02226803]
[1767700999300,0.01065,93921.0,93910.0,0.11556748]
[1767701001900,0.010651,93920.0,93910.0,0.11556748]
[1767701003200,0.010651,93920.0,93910.0,0.09256748]
[1767701003400,0.01065,93924.0,93910.0,0.09256748]
[1767701004000,0.09056,93928.0,93910.0,0.09806227]
[1767701005399,0.01065,93925.0,93911.0,0.11556748]